fUSD/lending_fUSD_20251129
["ID","MTS","AMOUNT","RATE_DAILY","PERIOD"]
[395107106,1764437440608,-1000.0,0.00016493,2]
[395107107,1764437440620,-1000.0,0.00016493,2]
[395107108,1764437440630,-1000.0,0.00016493,2]
[395107109,1764437440640,-1000.0,0.00016493,2]
[395107110,1764437440650,-1000.0,0.00016493,2]
[395107111,1764437440661,-1000.0,0.00016493,2]
[395107112,1764437440670,-1000.0,0.00016493,2]
[395107113,1764437440680,-1000.0,0.00016493,2]
[395107114,1764437440690,-1000.0,0.00016493,2]
[395107115,1764437440701,-1000.0,0.00016493,2]
[395107116,1764437440712,-1680.0,0.00016499,2]
[395107117,1764437440721,-427.45964135,0.00016501,2]
[395107118,1764437440730,-5329.0,0.00016502,2]
[395107119,1764437440739,-159.74,0.00016506,2]
[395107120,1764437440749,-1000.0,0.00016511,2]
[395107121,1764437440758,-1000.0,0.00016521,2]
[395107122,1764437440767,-1000.0,0.00016521,2]
[395107123,1764437440776,-1000.0,0.00016521,2]
[395107124,1764437440786,-1000.0,0.00016521,2]
[395107125,1764437440795,-1000.0,0.00016521,2]
[395107126,1764437440805,-1009.84757523,0.00016521,2]
[395107127,1764437440816,-1000.0,0.00016521,2]
[395107128,1764437440826,-1000.0,0.00016521,2]
[395107129,1764437440837,-1386.0,0.0001654,2]
[395107130,1764437440847,-1386.0,0.00016603,2]
[395107131,1764437440857,-1386.0,0.00016617,2]
[395107132,1764437440867,-2227.844,0.00016641,2]
[395107133,1764437440876,-186.916,0.00016641,2]
[395107134,1764437440886,-1386.0,0.00016641,2]
[395107135,1764437440895,-1410.0,0.000167,2]
[395107136,1764437440904,-1000.0,0.000167,2]
[395107137,1764437440914,-1000.0,0.000167,2]
[395107138,1764437440924,-1374.0,0.000167,2]
[395107139,1764437440935,-5329.0,0.00016712,2]
[395107140,1764437440944,-222.65612674,0.00016757,2]
[395107141,1764437440954,-5794.5662912,0.000168,2]
[395107142,1764437440965,-5794.56629118,0.00016811,2]
[395107143,1764437440975,-166.66,0.00016816,2]
[395107144,1764437440986,-5794.56629118,0.00016822,2]
[395107145,1764437440996,-1386.0,0.00016824,2]
[395107146,1764437441005,-272.07893,0.0001683,2]
[395107147,1764437441014,-5794.56629118,0.00016833,2]
[395107148,1764437441025,-5794.56629118,0.00016844,2]
[395107149,1764437441041,-5794.56629118,0.00016856,2]
[395107150,1764437441051,-5794.56629118,0.00016867,2]
[395107151,1764437441060,-220.09786946,0.00016877,2]
[395107152,1764437441070,-182.94087936,0.00016877,2]
[395107153,1764437441079,-585.21820826,0.00016877,2]
[395107154,1764437441091,-5794.56629118,0.00016878,2]
[395107155,1764437441101,-5794.56629118,0.00016889,2]
[395107156,1764437441111,-1386.0,0.00016894,2]
[395107157,1764437441121,-1128.5220205,0.00016899,5]
[395107158,1764437441130,-7694.0,0.000169,2]
[395107159,1764437441140,-812.84725818,0.000169,2]
[395107160,1764437441150,-760000.0,0.000169,2]
[395107161,1764437441160,-1000.0,0.000169,2]
[395107162,1764437441180,-699.19,0.000169,2]
[395107163,1764437441190,-5794.56629118,0.000169,2]
[395107164,1764437441200,-2126.1235024,0.000169,2]
[395107165,1764437441210,-197.02240292,0.000169,2]
[395107166,1764437441220,-1026.95478355,0.000169,2]
[395107167,1764437441230,-215.82750022,0.000169,2]
[395107168,1764437441240,-731.0154688,0.000169,2]
[395107169,1764437441250,-191.37909284,0.000169,2]
[395107170,1764437441259,-1386.0,0.00016927,2]
[395107171,1764437441270,-500.0,0.00016973,2]
[395107172,1764437441283,-500.0,0.00016973,2]
[395107173,1764437441293,-500.0,0.00016973,2]
[395107174,1764437441303,-500.0,0.00016973,2]
[395107175,1764437441312,-500.0,0.00016973,2]
[395107176,1764437441323,-500.0,0.00016973,2]
[395107177,1764437441333,-500.0,0.00016973,2]
[395107178,1764437441342,-500.0,0.00016973,2]
[395107179,1764437441353,-500.0,0.00016973,2]
[395107180,1764437441363,-165.98212225,0.00016973,2]
[395107181,1764437441373,-500.0,0.00016973,2]
[395107182,1764437441383,-500.0,0.00016973,2]
[395107183,1764437441392,-500.0,0.00016973,2]
[395107184,1764437441402,-500.0,0.00016973,2]
[395107185,1764437441412,-176.33851761,0.00016973,2]
[395107186,1764437441422,-500.0,0.00016973,2]
[395107187,1764437441431,-500.0,0.00016973,2]
[395107188,1764437441441,-500.0,0.00016973,2]
[395107189,1764437441452,-500.0,0.00016973,2]
[395107190,1764437441465,-500.0,0.00016973,2]
[395107191,1764437441475,-268.93907095,0.00016973,2]
[395107192,1764437441484,-500.0,0.00016973,2]
[395107193,1764437441497,-500.0,0.00016973,2]
[395107194,1764437441507,-500.0,0.00016973,2]
[395107195,1764437441517,-500.0,0.00016973,2]
[395107196,1764437441526,-500.0,0.00016973,2]
[395107197,1764437441536,-500.0,0.00016973,2]
[395107198,1764437441546,-500.0,0.00016973,2]
[395107199,1764437441555,-520.75,0.00016973,2]
[395107200,1764437441564,-574.0,0.00016986,2]
[395107201,1764437441573,-150.0,0.00016986,2]
[395107202,1764437441583,-150.0,0.00016986,2]
[395107203,1764437441592,-500.0,0.00016986,2]
[395107204,1764437441602,-500.0,0.00016999,2]
[395107205,1764437441611,-500.0,0.00016999,2]
[395107206,1764437441620,-500.0,0.00016999,2]
[395107207,1764437441631,-500.0,0.00016999,2]
[395107208,1764437441641,-500.0,0.00016999,2]
[395107209,1764437441652,-500.0,0.00016999,2]
[395107210,1764437441662,-500.0,0.00016999,2]
[395107211,1764437441671,-500.0,0.00016999,2]
[395107212,1764437441680,-504.53940233,0.00016999,2]
[395107213,1764437441690,-500.0,0.00016999,2]
[395107214,1764437441700,-500.0,0.00016999,2]
[395107215,1764437441709,-500.0,0.00016999,2]
[395107216,1764437441718,-500.0,0.00016999,2]
[395107217,1764437441727,-500.0,0.00016999,2]
[395107218,1764437441737,-500.0,0.00016999,2]
[395107219,1764437441746,-500.0,0.00016999,2]
[395107220,1764437441755,-591.31867425,0.00016999,2]
[395107221,1764437441765,-300.0,0.00016999,2]
[395107222,1764437441774,-500.27300015,0.00016999,2]
[395107223,1764437441783,-300.0,0.00016999,2]
[395107224,1764437441793,-158690.22255404,0.00017,2]
[395107226,1764437443039,-695.46055616,0.00017,2]
[395107234,1764437445867,-500.0,0.00016973,2]
[395107235,1764437445877,-421.55312077,0.00017,2]
[395107236,1764437445977,-251.08863277,0.00017,2]
[395107240,1764437527897,-723.5784,0.000159,2]
[395107244,1764438393188,-150.5,0.00026605,120]
[395107245,1764438393209,-150.5,0.00026615,120]
[395107246,1764438393230,-150.5,0.00026625,120]
[395107249,1764438404642,174.19,0.0002609,120]
[395107250,1764438595159,179.0,0.000267,120]
[395107252,1764438631838,-214.48447579,0.00014702,2]
[395107253,1764438631848,-1293.55694186,0.00014738,2]
[395107254,1764438631860,-1047.28305814,0.00014738,2]
[395107255,1764438631869,-306.84,0.00014802,2]
[395107256,1764438631878,-78.37552213,0.00014942,2]
[395107257,1764438631891,-1774.04447787,0.00014942,2]
[395107258,1764438631900,-195.0,0.00015024,2]
[395107259,1764438631909,-195.0,0.00015086,2]
[395107260,1764438631918,-1292.2,0.00015106,2]
[395107261,1764438631928,-1000.0,0.00015123,2]
[395107262,1764438631937,-1200.0,0.00015248,2]
[395107263,1764438631946,-1600.0,0.00015249,2]
[395107264,1764438631956,-214.48447579,0.0001525,2]
[395107265,1764438631965,-300.0,0.00015287,2]
[395107266,1764438631974,-300.0,0.00015287,2]
[395107267,1764438631983,-150.0,0.00015288,2]
[395107268,1764438631992,-150.0,0.00015288,2]
[395107269,1764438632002,-150.0,0.00015288,2]
[395107270,1764438632012,-238.95743324,0.00015288,2]
[395107271,1764438632021,-150.0,0.00015288,2]
[395107272,1764438632031,-150.0,0.00015288,2]
[395107273,1764438632041,-150.0,0.00015288,2]
[395107274,1764438632050,-150.0,0.00015288,2]
[395107275,1764438632059,-150.0,0.00015288,2]
[395107276,1764438632068,-150.0,0.00015288,2]
[395107277,1764438632077,-150.0,0.00015288,2]
[395107278,1764438632087,-281.97619086,0.00015545,2]
[395107279,1764438632096,-424.46862777,0.00015585,2]
[395107280,1764438632107,-497.55228091,0.00015585,2]
[395107281,1764438632119,-403.97909132,0.00015585,2]
[395107282,1764438632128,-160.0,0.000156,2]
[395107283,1764438632138,-659.0,0.00015608,2]
[395107284,1764438632146,-1817.0,0.00015616,2]
[395107285,1764438632156,-364.58862879,0.00015618,2]
[395107287,1764438632167,-606.48713533,0.00015618,2]
[395107290,1764438632179,-158.65423588,0.00015618,2]
[395107291,1764438632188,-2000.0,0.00015632,2]
[395107293,1764438632198,-338.94027938,0.00015779,3]
[395107294,1764438632209,-628.17110754,0.00015779,3]
[395107295,1764438632221,-31.88861308,0.00015779,3]
[395107296,1764438632230,-214.48447579,0.00015798,2]
[395107297,1764438632239,-866.50413284,0.00015799,2]
[395107298,1764438632248,-300.0,0.00015799,2]
[395107299,1764438632258,-1278.94042928,0.00015799,2]
[395107300,1764438632267,-1581.30535326,0.000158,2]
[395107301,1764438632284,-544.506,0.000158,2]
[395107302,1764438632295,-6526.25584674,0.000158,2]
[395107303,1764438632304,-3760.296,0.000158,2]
[395107304,1764438632313,-429.16888826,0.000158,2]
[395107305,1764438632323,-17566.22718599,0.000158,2]
[395107306,1764438632334,-271.54991355,0.000158,2]
[395107307,1764438632345,-276.80559916,0.000158,2]
[395107308,1764438632356,-1873.06066001,0.000158,2]
[395107312,1764438638113,-500.0,0.00015799,2]
[395107313,1764438638123,-274.91254511,0.00015799,2]
[395107314,1764438638132,-182.94087936,0.00015799,2]
[395107315,1764438638142,-270.70385758,0.00015799,2]
[395107316,1764438638151,-174.11750457,0.00015799,2]
[395107317,1764438638162,-500.0,0.00015799,2]
[395107318,1764438638171,-346.57676487,0.00015799,2]
[395107319,1764438638181,-500.0,0.00015799,2]
[395107320,1764438638191,-500.0,0.00015799,2]
[395107321,1764438638200,-279.08621245,0.00015799,2]
[395107322,1764438638211,-220.91378755,0.00015799,2]
[395107323,1764438638220,-500.0,0.00015799,2]
[395107324,1764438638229,-108.65723245,0.00015799,2]
[395107325,1764438638247,-354.6731585,0.00015799,2]
[395107326,1764438638258,-36.66960905,0.00015799,2]
[395107327,1764438638267,-500.0,0.00015799,2]
[395107328,1764438638277,-500.0,0.00015799,2]
[395107329,1764438638287,-200.49878285,0.00015799,2]
[395107330,1764438638297,-500.0,0.00015799,2]
[395107331,1764438638306,-500.0,0.00015799,2]
[395107332,1764438638315,-500.0,0.00015799,2]
[395107333,1764438638324,-500.0,0.00015799,2]
[395107334,1764438638333,-1981.86025963,0.000158,2]
[395107335,1764438638418,-294.3711004,0.000158,2]
[395107336,1764438638429,-1086.70055045,0.000158,2]
[395107338,1764438639895,-1212.12124319,0.000158,2]
[395107339,1764438640267,-735437.30348762,0.000158,2]
[395107340,1764438640278,-2500.0,0.000158,2]
[395107341,1764438640287,-2381.701,0.00015898,2]
[395107342,1764438640296,-186.916,0.00015898,2]
[395107343,1764438640307,-500.0,0.00015899,2]
[395107344,1764438640319,-500.0,0.00015899,2]
[395107345,1764438640328,-500.0,0.00015899,2]
[395107346,1764438640337,-500.0,0.00015899,2]
[395107347,1764438640348,-500.0,0.00015899,2]
[395107348,1764438640357,-500.0,0.00015899,2]
[395107349,1764438640368,-500.0,0.00015899,2]
[395107350,1764438640377,-500.0,0.00015899,2]
[395107351,1764438640387,-500.0,0.00015899,2]
[395107352,1764438640396,-500.0,0.00015899,2]
[395107353,1764438640405,-504.53940233,0.00015899,2]
[395107354,1764438640415,-500.0,0.00015899,2]
[395107355,1764438640424,-500.0,0.00015899,2]
[395107356,1764438640433,-500.0,0.00015899,2]
[395107357,1764438640442,-500.0,0.00015899,2]
[395107358,1764438640451,-500.0,0.00015899,2]
[395107359,1764438640460,-1128.5220205,0.00015899,5]
[395107360,1764438640469,-723.76,0.00015899,2]
[395107361,1764438640479,-264.17445415,0.000159,2]
[395107362,1764438640490,-250.0,0.000159,2]
[395107363,1764438640499,-8000.0,0.000159,2]
[395107364,1764438640508,-500.0,0.000159,2]
[395107365,1764438640518,-267.46074303,0.000159,2]
[395107366,1764438640527,-250.0,0.000159,2]
[395107367,1764438640536,-8000.0,0.000159,2]
[395107368,1764438640546,-180.90449535,0.000159,2]
[395107369,1764438640555,-250.0,0.000159,2]
[395107370,1764438640565,-4140.98841583,0.000159,2]
[395107371,1764438640573,-244.02628622,0.000159,2]
[395107372,1764438640582,-1000.0,0.000159,2]
[395107373,1764438640592,-160.0935679,0.000159,2]
[395107374,1764438640601,-643.18203751,0.000159,2]
[395107375,1764438640611,-278.88579801,0.000159,2]
[395107376,1764438640622,-1000.0,0.000159,2]
[395107377,1764438640632,-1000.0,0.000159,2]
[395107378,1764438640642,-1000.0,0.000159,2]
[395107379,1764438640652,-300.0,0.000159,2]
[395107380,1764438640661,-1000.0,0.000159,2]
[395107381,1764438640670,-1000.0,0.000159,2]
[395107382,1764438640680,-1000.0,0.000159,2]
[395107383,1764438640689,-1000.0,0.000159,2]
[395107384,1764438640698,-1000.0,0.000159,2]
[395107385,1764438640708,-1000.0,0.000159,2]
[395107386,1764438640718,-1000.0,0.000159,2]
[395107387,1764438640727,-1000.0,0.000159,2]
[395107388,1764438640737,-1000.0,0.000159,2]
[395107389,1764438640747,-1000.0,0.000159,2]
[395107390,1764438640756,-699.19,0.000159,2]
[395107391,1764438640766,-593.72248986,0.000159,2]
[395107392,1764438640775,-501.02061135,0.00015973,2]
[395107393,1764438640784,-154.79663815,0.00015973,2]
[395107394,1764438640793,-500.0,0.00015973,2]
[395107395,1764438640802,-500.0,0.00015973,2]
[395107396,1764438640811,-219.14986127,0.00015973,2]
[395107397,1764438640820,-500.0,0.00015973,2]
[395107398,1764438640829,-500.0,0.00015973,2]
[395107399,1764438640839,-500.0,0.00015973,2]
[395107400,1764438640847,-500.0,0.00015973,2]
[395107401,1764438640857,-500.0,0.00015973,2]
[395107402,1764438640866,-500.32730169,0.00015973,2]
[395107403,1764438640875,-500.0,0.00015973,2]
[395107404,1764438640884,-500.0,0.00015973,2]
[395107405,1764438640894,-500.0,0.00015973,2]
[395107406,1764438640908,-500.0,0.00015973,2]
[395107407,1764438640918,-297.32,0.00016071,2]
[395107408,1764438640927,-205.9,0.00016089,2]
[395107409,1764438640936,-200.0,0.00016144,2]
[395107410,1764438640946,-250.0,0.00016144,2]
[395107411,1764438640955,-323.33930456,0.00016172,2]
[395107412,1764438640964,-723.76,0.00016173,2]
[395107413,1764438640973,-250.0,0.00016211,2]
[395107414,1764438640985,-1278.94042927,0.0001635,2]
[395107415,1764438640994,-300.0,0.00016436,2]
[395107416,1764438641004,-195.0,0.00016436,2]
[395107417,1764438641014,-300.0,0.00016436,2]
[395107418,1764438641023,-150.92164217,0.00016438,2]
[395107419,1764438641033,-500.0,0.00016438,2]
[395107420,1764438641042,-452.21585205,0.00016438,2]
[395107421,1764438641052,-9899.58,0.00016438,2]
[395107422,1764438641061,-723.76,0.00016447,2]
[395107423,1764438641070,-1000.0,0.00016448,2]
[395107424,1764438641079,-427.45964135,0.00016496,2]
[395107425,1764438641088,-1000.0,0.00016521,2]
[395107426,1764438641097,-1000.0,0.00016521,2]
[395107427,1764438641106,-1000.0,0.00016521,2]
[395107428,1764438641115,-1000.0,0.00016521,2]
[395107429,1764438641125,-509.84757523,0.00016521,2]
[395107430,1764438641134,-1000.0,0.00016521,2]
[395107431,1764438641143,-1000.0,0.00016521,2]
[395107432,1764438641152,-1000.0,0.00016521,2]
[395107433,1764438641162,-301.82596373,0.00016616,2]
[395107434,1764438641171,-266.4902529,0.00016616,2]
[395107435,1764438641180,-7287.47254539,0.00016656,2]
[395107436,1764438641190,-723.76,0.00016721,2]
[395107437,1764438641200,-420.0,0.00016726,2]
[395107438,1764438641209,-1680.0,0.00016768,2]
[395107439,1764438641219,-200.0,0.00016773,2]
[395107440,1764438641228,-7287.47254539,0.00016778,2]
[395107441,1764438641237,-391.12687,0.0001683,2]
[395107442,1764438641247,-500.0,0.00016899,2]
[395107443,1764438641256,-591.31867425,0.00016899,2]
[395107444,1764438641265,-500.27300015,0.00016899,2]
[395107445,1764438641274,-812.84725818,0.000169,2]
[395107446,1764438641284,-7287.47254539,0.000169,2]
[395107447,1764438641293,-10000.0,0.000169,2]
[395107448,1764438641302,-2126.1235024,0.000169,2]
[395107449,1764438641311,-731.0154688,0.000169,2]
[395107450,1764438641320,-287.06863924,0.000169,2]
[395107451,1764438641329,-1278.94042927,0.000169,2]
[395107452,1764438641338,-1232.34574025,0.000169,2]
[395107453,1764438641348,-510.0,0.00016921,2]
[395107454,1764438641357,-1414.92524019,0.0001693,2]
[395107455,1764438641367,-222.65612674,0.00016937,2]
[395107456,1764438641376,-500.0,0.00016973,2]
[395107457,1764438641385,-500.0,0.00016973,2]
[395107458,1764438641394,-500.0,0.00016973,2]
[395107459,1764438641403,-500.0,0.00016973,2]
[395107460,1764438641413,-500.0,0.00016973,2]
[395107461,1764438641422,-165.98212225,0.00016973,2]
[395107462,1764438641431,-500.0,0.00016973,2]
[395107463,1764438641440,-500.0,0.00016973,2]
[395107464,1764438641450,-500.0,0.00016973,2]
[395107465,1764438641459,-500.0,0.00016973,2]
[395107466,1764438641468,-500.0,0.00016973,2]
[395107467,1764438641477,-500.0,0.00016973,2]
[395107468,1764438641486,-500.0,0.00016973,2]
[395107469,1764438641496,-500.0,0.00016973,2]
[395107470,1764438641505,-500.0,0.00016973,2]
[395107471,1764438641514,-500.0,0.00016973,2]
[395107472,1764438641523,-500.0,0.00016973,2]
[395107473,1764438641532,-500.0,0.00016973,2]
[395107474,1764438641542,-176.33851761,0.00016973,2]
[395107475,1764438641551,-500.0,0.00016973,2]
[395107476,1764438641561,-359.11444103,0.00016973,2]
[395107477,1764438641570,-500.0,0.00016973,2]
[395107478,1764438641579,-500.0,0.00016973,2]
[395107479,1764438641588,-415.30385931,0.00016973,2]
[395107480,1764438641597,-500.0,0.00016973,2]
[395107481,1764438641606,-500.0,0.00016973,2]
[395107482,1764438641615,-500.0,0.00016973,2]
[395107483,1764438641624,-500.0,0.00016973,2]
[395107484,1764438641633,-281.67573932,0.00016973,2]
[395107485,1764438641642,-500.0,0.00016973,2]
[395107486,1764438641651,-500.0,0.00016973,2]
[395107487,1764438641662,-500.0,0.00016973,2]
[395107488,1764438641672,-500.0,0.00016973,2]
[395107489,1764438641682,-500.0,0.00016973,2]
[395107490,1764438641692,-153.55302582,0.00016983,2]
[395107491,1764438641702,-207.71038414,0.00016986,2]
[395107492,1764438641712,-150.0,0.00016986,2]
[395107493,1764438641721,-150.0,0.00016986,2]
[395107494,1764438641731,-150.0,0.00016986,2]
[395107495,1764438641741,-207.97326691,0.00016986,2]
[395107496,1764438641752,-150.0,0.00016986,2]
[395107497,1764438641761,-150.0,0.00016986,2]
[395107498,1764438641771,-607.0,0.00016986,2]
[395107499,1764438641780,-150.0,0.00016986,2]
[395107500,1764438641789,-150.0,0.00016986,2]
[395107501,1764438641799,-150.0,0.00016986,2]
[395107502,1764438641808,-150.0,0.00016986,2]
[395107503,1764438641816,-500.0,0.00016986,2]
[395107504,1764438641825,-150.0,0.00016986,2]
[395107505,1764438641834,-150.0,0.00016986,2]
[395107506,1764438641843,-150.0,0.00016986,2]
[395107507,1764438641852,-500.0,0.00016986,2]
[395107508,1764438641861,-150.0,0.00016986,2]
[395107509,1764438641870,-286.23034224,0.00016986,2]
[395107510,1764438641879,-150.00000001,0.00016986,2]
[395107511,1764438641888,-150.0,0.00016986,2]
[395107512,1764438641898,-159.50313577,0.00016986,2]
[395107513,1764438641907,-150.0,0.00016986,2]
[395107514,1764438641916,-150.0,0.00016986,2]
[395107515,1764438641926,-150.00000001,0.00016986,2]
[395107516,1764438641935,-150.0,0.00016986,2]
[395107517,1764438641944,-263.26519719,0.00016986,2]
[395107518,1764438641953,-8223.0,0.00016994,2]
[395107519,1764438641962,-69628.4357545,0.00016994,2]
[395107520,1764438641971,-4995.2205189,0.00016994,2]
[395107521,1764438641981,-45655.4820883,0.00016994,2]
[395107522,1764438641991,-723.76,0.00016995,2]
[395107523,1764438642000,-1000.0,0.00016996,2]
[395107524,1764438642009,-270.8223189,0.00016998,2]
[395107525,1764438642018,-307.16413271,0.00016999,2]
[395107526,1764438642028,-290.47845738,0.00016999,2]
[395107527,1764438642037,-300.0,0.00016999,2]
[395107528,1764438642046,-438759.04002106,0.00017,2]
[395107529,1764438642063,-1401.55,0.00017,2]
[395107530,1764438642074,-894.00000001,0.00017,2]
[395107531,1764438642085,-500.0,0.00017,2]
[395107532,1764438642100,-1704.13180317,0.00017,2]
[395107533,1764438642111,-458.87061,0.00017,2]
[395107534,1764438642126,-1528.70657414,0.00017,2]
[395107535,1764438642137,-318.01194199,0.00017,2]
[395107536,1764438642158,-12158.24223691,0.00017,2]
[395107537,1764438642167,-74926.60097128,0.00017,2]
[395107540,1764438642886,-1856.47342881,0.00017,2]
[395107541,1764438642899,-7883.95283496,0.00017,2]
[395107542,1764438642994,-260.88199408,0.00017,2]
[395107544,1764438643006,-457397.09228979,0.00017,2]
[395107546,1764438643018,-666.106399,0.00017,2]
[395107553,1764438645876,-906.72695593,0.00017,2]
[395107554,1764438645997,-274.18,0.00017,2]
[395107555,1764438646008,-359.50962966,0.00017,2]
[395107556,1764438646038,-9906.60373915,0.00017,2]
[395107557,1764438646094,-375.256147,0.00017,2]
[395107558,1764438646147,-616.0,0.00017,2]
[395107559,1764438646201,-7435.18953677,0.00017,2]
[395107594,1764438685275,180.89,0.00019178,30]
[395107595,1764438780617,834.68,0.00013699,2]
[395107622,1764439661292,159.74,0.0001468,2]
[395107626,1764439804122,166.66,0.00013729,2]
[395107627,1764439804342,166.66,0.00014018,2]
[395107628,1764439804553,166.66,0.00014307,2]
[395107629,1764439804759,166.66,0.00014596,2]
[395107646,1764439832088,-3324.33770089,0.00014812,2]
[395107647,1764439832102,-4550.04871907,0.00014812,2]
[395107648,1764439832111,-166.66,0.00014885,2]
[395107649,1764439832120,-156.47310802,0.00014898,2]
[395107650,1764439832195,-1043.52689198,0.00014898,2]
[395107651,1764439832205,-150.0,0.00014899,2]
[395107652,1764439832215,-55.65790644,0.00014899,2]
[395107653,1764439832226,-244.34209356,0.00014899,2]
[395107654,1764439832235,-52.06676882,0.00014899,2]
[395107655,1764439832287,-247.93323118,0.00014899,2]
[395107656,1764439832298,-300.0,0.00014899,2]
[395107657,1764439832308,-500.0,0.00014899,2]
[395107658,1764439832318,-176.73786141,0.00014899,2]
[395107659,1764439832327,-192.43878158,0.00014899,2]
[395107660,1764439832337,-500.0,0.00014899,2]
[395107661,1764439832349,-188.94430921,0.00014899,2]
[395107662,1764439832358,-296.4088,0.000149,2]
[395107663,1764439832368,-163.53,0.000149,2]
[395107664,1764439832380,-1904.22692047,0.000149,2]
[395107665,1764439832412,-974.57167242,0.000149,2]
[395107666,1764439832423,-3099.58681184,0.000149,2]
[395107667,1764439832435,-1998.50742485,0.000149,2]
[395107668,1764439832446,-3712.49726896,0.000149,2]
[395107669,1764439832457,-474.78399393,0.000149,2]
[395107677,1764439833965,-4937.53945986,0.000149,2]
[395107678,1764439833995,-14251.8,0.000149,2]
[395107679,1764439834006,-4308.48920621,0.000149,2]
[395107680,1764439834017,-659.1457183,0.000149,2]
[395107683,1764439838273,-262.51009921,0.000149,2]
[395107689,1764439840119,-723416.34142395,0.000149,2]
[395107690,1764439840129,-195.0,0.00014912,2]
[395107691,1764439840139,-281.32465833,0.00014912,2]
[395107692,1764439840148,-300.0,0.00014925,2]
[395107693,1764439840158,-852.62695286,0.00014926,2]
[395107694,1764439840168,-195.0,0.00014945,2]
[395107695,1764439840177,-300.0,0.0001496,2]
[395107696,1764439840187,-150.0,0.00014971,2]
[395107697,1764439840196,-172655.56992,0.00015,2]
[395107698,1764439840206,-1500.0,0.00015026,2]
[395107699,1764439840215,-7874.38641989,0.00015044,2]
[395107700,1764439840225,-166.66,0.00015174,2]
[395107701,1764439840235,-299.99,0.00015191,2]
[395107702,1764439840244,-7359.45200125,0.00015276,2]
[395107703,1764439840260,-514.93441864,0.00015276,2]
[395107704,1764439840271,-150.0,0.00015288,2]
[395107705,1764439840281,-150.0,0.00015288,2]
[395107706,1764439840291,-150.0,0.00015288,2]
[395107707,1764439840300,-74.56558135,0.00015288,2]
[395107708,1764439840387,-75.43441865,0.00015288,2]
[395107709,1764439840396,-150.0,0.00015288,2]
[395107710,1764439840406,-150.0,0.00015288,2]
[395107711,1764439840415,-150.0,0.00015288,2]
[395107712,1764439840424,-150.0,0.00015288,2]
[395107713,1764439840433,-98.62107985,0.00015508,2]
[395107728,1764439843143,-925.9169098,0.00015508,2]
[395107729,1764439843194,-1416.70667454,0.00015508,2]
[395107730,1764439843407,-2765.67133995,0.00015508,2]
[395107736,1764439846051,-371.99662499,0.00015198,2]
[395107737,1764439846161,-468.84776493,0.00015198,2]
[395107738,1764439846171,-1512.46223507,0.00015508,2]
[395107739,1764439846214,-826.09384392,0.00015508,2]
[395107740,1764439846269,-290.1,0.00015508,2]
[395107741,1764439846325,-38.81433676,0.00015508,2]
[395107742,1764439846335,-150.0,0.00015571,2]
[395107743,1764439846344,-474.88989304,0.00015571,2]
[395107751,1764440019992,156.29,0.00014693,2]
[395107754,1764440151455,300.0,0.000146,2]
[395107759,1764440398907,2000.0,0.00014536,2]
[395107773,1764440493682,1905.361,0.00014504,2]
[395107774,1764440493752,186.916,0.00014504,2]
[395107867,1764440724146,153.89283368,0.0002,30]
[395108031,1764440952046,375.52277728,0.00014608,2]
[395108116,1764441032461,3239.13022272,0.00014608,2]
[395108117,1764441032485,2613.61883944,0.00014608,2]